[Event "Rapid della Domenica"]
[Site "Chess.com"]
[Date "2020.04.19"]
[Round "2"]
[White "sergiodone"]
[Black "ottovolante"]
[Result "1-0"]
[WhiteElo "1356"]
[BlackElo "1015"]
[TimeControl "720+3"]
[EndTime "6:34:50 PDT"]
[Termination "sergiodone ha vinto per abbandono"]

1. e4 {[%clk 0:11:59]} 1... e5 {[%clk 0:11:23.1]} 2. d4 {[%clk 0:11:59.8]} 2...
d6 {[%clk 0:11:22.5]} 3. Nf3 {[%clk 0:12:00.4]} 3... Nc6 {[%clk 0:10:58.4]} 4.
Bc4 {[%clk 0:12:00.4]} 4... h6 {[%clk 0:10:55.3]} 5. h3 {[%clk 0:12:00.5]} 5...
Nf6 {[%clk 0:09:59.2]} 6. Nbd2 {[%clk 0:11:58.6]} 6... a6 {[%clk 0:09:50.7]} 7.
d5 {[%clk 0:11:54.5]} 7... Na5 {[%clk 0:09:01.3]} 8. Be2 {[%clk 0:11:51.8]} 8...
Bd7 {[%clk 0:08:40.5]} 9. b4 {[%clk 0:11:50.8]} 9... Bb5 {[%clk 0:08:20.4]} 10.
bxa5 {[%clk 0:11:51.1]} 10... Bxe2 {[%clk 0:08:21.1]} 11. Qxe2 {[%clk
0:11:51.8]} 11... Qd7 {[%clk 0:08:05.8]} 12. a4 {[%clk 0:11:38.6]} 12... Be7
{[%clk 0:07:54.8]} 13. c4 {[%clk 0:11:25.4]} 13... Nh5 {[%clk 0:06:08.1]} 14.
Nf1 {[%clk 0:11:21]} 14... Nf4 {[%clk 0:06:06.8]} 15. Bxf4 {[%clk 0:11:19.9]}
15... exf4 {[%clk 0:06:07.1]} 16. N1h2 {[%clk 0:10:52.6]} 16... g5 {[%clk
0:06:10]} 17. e5 {[%clk 0:10:46.9]} 17... Bf6 {[%clk 0:06:12.9]} 18. O-O {[%clk
0:10:39.1]} 18... dxe5 {[%clk 0:06:11.7]} 19. Ng4 {[%clk 0:10:39.6]} 19... O-O-O
{[%clk 0:06:11.2]} 20. Nxf6 {[%clk 0:10:38.8]} 20... Qf5 {[%clk 0:06:06.7]} 21.
Qxe5 {[%clk 0:10:27.9]} 21... Qxe5 {[%clk 0:06:03.8]} 22. Nxe5 {[%clk
0:10:28.6]} 22... c6 {[%clk 0:05:42.5]} 23. Nxf7 {[%clk 0:10:28.3]} 23... Rdf8
{[%clk 0:05:41.7]} 24. Nxh8 {[%clk 0:10:28.9]} 24... Rxf6 {[%clk 0:05:41.9]} 25.
Rfe1 {[%clk 0:10:25.3]} 1-0

[Event "Rapid della Domenica"]
[Site "Chess.com"]
[Date "2020.04.19"]
[Round "2"]
[White "ferrariand"]
[Black "MartinoMontepietra"]
[Result "1-0"]
[WhiteElo "1578"]
[BlackElo "732"]
[TimeControl "720+3"]
[EndTime "6:42:47 PDT"]
[Termination "ferrariand ha vinto per scaccomatto"]

1. e4 {[%clk 0:12:02.9]} 1... g6 {[%clk 0:11:57.1]} 2. d4 {[%clk 0:12:02.2]}
2... Bg7 {[%clk 0:11:57.7]} 3. Nf3 {[%clk 0:12:01.8]} 3... Nf6 {[%clk
0:11:57.1]} 4. Nc3 {[%clk 0:12:01.5]} 4... O-O {[%clk 0:11:58.2]} 5. Bc4 {[%clk
0:11:57.6]} 5... a5 {[%clk 0:11:58.6]} 6. O-O {[%clk 0:11:56.5]} 6... c6 {[%clk
0:11:57.6]} 7. e5 {[%clk 0:11:48.4]} 7... Ne8 {[%clk 0:11:56.4]} 8. Ng5 {[%clk
0:11:39.5]} 8... h6 {[%clk 0:11:36.3]} 9. Nf3 {[%clk 0:11:25.8]} 9... b5 {[%clk
0:11:32.3]} 10. Bd3 {[%clk 0:11:16.4]} 10... b4 {[%clk 0:11:30.9]} 11. Ne4
{[%clk 0:11:12.3]} 11... d6 {[%clk 0:11:26.8]} 12. Be3 {[%clk 0:10:52.3]} 12...
Bg4 {[%clk 0:11:08.7]} 13. h3 {[%clk 0:10:41.4]} 13... Be6 {[%clk 0:11:01.1]}
14. Qd2 {[%clk 0:10:36.5]} 14... c5 {[%clk 0:10:53]} 15. dxc5 {[%clk 0:10:24.8]}
15... d5 {[%clk 0:10:40.4]} 16. Ng3 {[%clk 0:10:03.9]} 16... Nd7 {[%clk
0:10:20.2]} 17. Bxh6 {[%clk 0:10:04.6]} 17... f6 {[%clk 0:09:41.6]} 18. Bxg7
{[%clk 0:09:59.3]} 18... Kxg7 {[%clk 0:09:38.8]} 19. exf6+ {[%clk 0:09:51.2]}
19... Rxf6 {[%clk 0:09:36]} 20. c6 {[%clk 0:09:38.9]} 20... Nc5 {[%clk
0:09:18.7]} 21. Nh5+ {[%clk 0:07:35.7]} 21... Kf8 {[%clk 0:09:15.1]} 22. Nxf6
{[%clk 0:07:35.6]} 22... exf6 {[%clk 0:09:11.7]} 23. Qh6+ {[%clk 0:07:35]} 23...
Ke7 {[%clk 0:09:08.1]} 24. Bxg6 {[%clk 0:07:31.2]} 24... Kd6 {[%clk 0:09:03.7]}
25. Nd4 {[%clk 0:07:05.4]} 25... Bg8 {[%clk 0:08:33.3]} 26. Qf4+ {[%clk
0:06:59.3]} 26... Ke7 {[%clk 0:07:40.9]} 27. Rfe1+ {[%clk 0:06:54.6]} 27... Kf8
{[%clk 0:07:04.9]} 28. Bxe8 {[%clk 0:06:54.7]} 28... Qxe8 {[%clk 0:06:58.6]} 29.
Rxe8+ {[%clk 0:06:51.3]} 29... Rxe8 {[%clk 0:06:54.9]} 30. Qxf6+ {[%clk
0:06:51.9]} 30... Bf7 {[%clk 0:06:52.1]} 31. Qd6+ {[%clk 0:06:45.3]} 31... Kg8
{[%clk 0:06:45.4]} 32. Qxc5 {[%clk 0:06:46.6]} 32... Rc8 {[%clk 0:05:54.1]} 33.
c7 {[%clk 0:06:43.2]} 33... Rf8 {[%clk 0:04:55]} 34. c8=Q {[%clk 0:06:41.1]}
34... Rxc8 {[%clk 0:04:51.8]} 35. Qxc8+ {[%clk 0:06:41.9]} 35... Kg7 {[%clk
0:04:51.2]} 36. Re1 {[%clk 0:06:42.9]} 36... a4 {[%clk 0:04:42.3]} 37. Re7
{[%clk 0:06:42.1]} 37... b3 {[%clk 0:04:33.7]} 38. axb3 {[%clk 0:06:41.1]} 38...
a3 {[%clk 0:04:30.8]} 39. bxa3 {[%clk 0:06:39]} 39... Kf6 {[%clk 0:04:24.9]} 40.
Rxf7+ {[%clk 0:06:38.2]} 40... Kxf7 {[%clk 0:04:24.9]} 41. Qe6+ {[%clk
0:06:37.8]} 41... Kg7 {[%clk 0:04:15.6]} 42. Nf5+ {[%clk 0:06:36.7]} 42... Kh7
{[%clk 0:04:10.5]} 43. Qh6+ {[%clk 0:06:25]} 43... Kg8 {[%clk 0:04:01.6]} 44.
Qg7# {[%clk 0:06:26]} 1-0

[Event "Rapid della Domenica"]
[Site "Chess.com"]
[Date "2020.04.19"]
[Round "2"]
[White "pedrak"]
[Black "sirmale49"]
[Result "1-0"]
[WhiteElo "1561"]
[BlackElo "1366"]
[TimeControl "720+3"]
[EndTime "6:45:15 PDT"]
[Termination "pedrak ha vinto per tempo"]

1. d4 {[%clk 0:12:02.9]} 1... d5 {[%clk 0:12:00.2]} 2. Nf3 {[%clk 0:12:04.4]}
2... Bf5 {[%clk 0:12:00.8]} 3. Bf4 {[%clk 0:11:56.4]} 3... Nf6 {[%clk
0:11:59.6]} 4. e3 {[%clk 0:11:58]} 4... e6 {[%clk 0:11:41.9]} 5. Be2 {[%clk
0:11:51.7]} 5... Bd6 {[%clk 0:11:42]} 6. Ne5 {[%clk 0:11:52.9]} 6... Nbd7 {[%clk
0:11:38.6]} 7. g4 {[%clk 0:11:54]} 7... Bg6 {[%clk 0:10:59.2]} 8. h4 {[%clk
0:11:55.1]} 8... h6 {[%clk 0:10:52.4]} 9. Nxg6 {[%clk 0:11:56]} 9... fxg6 {[%clk
0:10:52.4]} 10. c3 {[%clk 0:11:51.1]} 10... Bxf4 {[%clk 0:10:52.8]} 11. exf4
{[%clk 0:11:52.3]} 11... Ne4 {[%clk 0:10:43.5]} 12. Nd2 {[%clk 0:11:50.8]} 12...
Nd6 {[%clk 0:10:13.5]} 13. Qc2 {[%clk 0:11:51.4]} 13... Qf6 {[%clk 0:10:05.9]}
14. O-O-O {[%clk 0:11:42.2]} 14... O-O-O {[%clk 0:09:55.6]} 15. Qa4 {[%clk
0:11:32.9]} 15... Kb8 {[%clk 0:09:43.6]} 16. Bb5 {[%clk 0:11:18]} 16... Nb6
{[%clk 0:09:40.2]} 17. Qb3 {[%clk 0:11:13.6]} 17... c6 {[%clk 0:09:21.1]} 18.
Bd3 {[%clk 0:10:46.2]} 18... Qxf4 {[%clk 0:09:05.6]} 19. a4 {[%clk 0:10:45.8]}
19... Nbc4 {[%clk 0:08:59.4]} 20. Kc2 {[%clk 0:10:27.2]} 20... Na5 {[%clk
0:08:13.7]} 21. Qb4 {[%clk 0:10:25.1]} 21... b6 {[%clk 0:07:50.3]} 22. Nb3
{[%clk 0:10:07]} 22... Nac4 {[%clk 0:06:42.7]} 23. Rhf1 {[%clk 0:09:26.6]} 23...
Kc7 {[%clk 0:04:59.7]} 24. f3 {[%clk 0:09:12.2]} 24... Qh2+ {[%clk 0:03:37.4]}
25. Rd2 {[%clk 0:08:39.8]} 25... Nxd2 {[%clk 0:03:00.3]} 26. Nxd2 {[%clk
0:08:38.3]} 26... a5 {[%clk 0:02:23]} 27. Qb3 {[%clk 0:08:30.7]} 27... Rhf8
{[%clk 0:01:59.1]} 28. Kc1 {[%clk 0:08:27.8]} 28... Qxh4 {[%clk 0:01:29.1]} 29.
Qd1 {[%clk 0:08:07.3]} 29... Rf4 {[%clk 0:00:59.9]} 30. Qe2 {[%clk 0:08:06.3]}
30... Re8 {[%clk 0:00:48.7]} 31. Bxg6 {[%clk 0:08:04.6]} 31... Qf6 {[%clk
0:00:45.4]} 32. Bxe8 {[%clk 0:08:03.6]} 32... Nxe8 {[%clk 0:00:37.6]} 33. Qa6
{[%clk 0:08:04.7]} 33... Nd6 {[%clk 0:00:26.1]} 34. Qe2 {[%clk 0:07:19.5]} 34...
Nc4 {[%clk 0:00:10.8]} 35. Nxc4 {[%clk 0:07:14.3]} 35... dxc4 {[%clk 0:00:12.6]}
36. Qxc4 {[%clk 0:07:04.4]} 36... Rxf3 {[%clk 0:00:08.7]} 37. Rxf3 {[%clk
0:07:05.3]} 37... Qxf3 {[%clk 0:00:08.3]} 38. Qxe6 {[%clk 0:07:07.1]} 1-0

[Event "Rapid della Domenica"]
[Site "Chess.com"]
[Date "2020.04.19"]
[Round "2"]
[White "OMatteoWuO"]
[Black "fausto2p"]
[Result "1-0"]
[WhiteElo "1174"]
[BlackElo "886"]
[TimeControl "720+3"]
[EndTime "6:46:59 PDT"]
[Termination "OMatteoWuO ha vinto per tempo"]

1. d4 {[%clk 0:12:02.9]} 1... d5 {[%clk 0:11:59.8]} 2. c4 {[%clk 0:12:03.9]}
2... c6 {[%clk 0:11:59.2]} 3. Nc3 {[%clk 0:11:59.1]} 3... Nf6 {[%clk 0:11:57.3]}
4. Nf3 {[%clk 0:11:48.2]} 4... e6 {[%clk 0:11:25.9]} 5. Bg5 {[%clk 0:11:35.6]}
5... h6 {[%clk 0:11:22.4]} 6. Bxf6 {[%clk 0:11:36.2]} 6... Qxf6 {[%clk
0:11:16.8]} 7. e3 {[%clk 0:11:11.4]} 7... Bb4 {[%clk 0:11:04.2]} 8. Qc2 {[%clk
0:11:03]} 8... O-O {[%clk 0:10:38]} 9. a3 {[%clk 0:11:03.7]} 9... Bxc3+ {[%clk
0:10:15.7]} 10. Qxc3 {[%clk 0:11:04.2]} 10... Nd7 {[%clk 0:10:04.2]} 11. Bd3
{[%clk 0:10:31.6]} 11... dxc4 {[%clk 0:09:53.8]} 12. Bxc4 {[%clk 0:10:30.1]}
12... Nb6 {[%clk 0:09:53]} 13. Be2 {[%clk 0:10:19.2]} 13... Nd5 {[%clk
0:09:49.8]} 14. Qc2 {[%clk 0:10:01.4]} 14... Qe7 {[%clk 0:09:11.6]} 15. O-O
{[%clk 0:09:51.2]} 15... Qd6 {[%clk 0:08:29.9]} 16. b4 {[%clk 0:08:37]} 16... a6
{[%clk 0:08:28.2]} 17. Bc4 {[%clk 0:08:17.1]} 17... b5 {[%clk 0:08:08.8]} 18.
Bd3 {[%clk 0:07:52.9]} 18... Bb7 {[%clk 0:07:57]} 19. Ne5 {[%clk 0:07:38.8]}
19... Rac8 {[%clk 0:07:47.9]} 20. Rac1 {[%clk 0:07:10]} 20... Ne7 {[%clk
0:07:33.4]} 21. f4 {[%clk 0:06:04.5]} 21... f5 {[%clk 0:05:26.2]} 22. Qe2 {[%clk
0:05:19.7]} 22... Rf6 {[%clk 0:03:38.1]} 23. h3 {[%clk 0:04:22.9]} 23... Qc7
{[%clk 0:00:54.3]} 24. g4 {[%clk 0:04:06.3]} 24... a5 {[%clk 0:00:06.5]} 25.
gxf5 {[%clk 0:03:56.4]} 1-0

[Event "Rapid della Domenica"]
[Site "Chess.com"]
[Date "2020.04.19"]
[Round "2"]
[White "Piccolorso"]
[Black "SanSecondoPR"]
[Result "0-1"]
[WhiteElo "1287"]
[BlackElo "1179"]
[TimeControl "720+3"]
[EndTime "6:48:13 PDT"]
[Termination "SanSecondoPR ha vinto per abbandono"]

1. e4 {[%clk 0:12:02.9]} 1... e5 {[%clk 0:12:00.6]} 2. Nf3 {[%clk 0:12:03.9]}
2... Nc6 {[%clk 0:11:59.6]} 3. Bb5 {[%clk 0:12:04.7]} 3... Nge7 {[%clk
0:11:58.9]} 4. c3 {[%clk 0:12:01.6]} 4... g6 {[%clk 0:11:53.1]} 5. Bc4 {[%clk
0:10:54.1]} 5... Bg7 {[%clk 0:11:51.7]} 6. d4 {[%clk 0:09:40.3]} 6... O-O {[%clk
0:11:54.6]} 7. O-O {[%clk 0:09:40.6]} 7... d6 {[%clk 0:11:35.7]} 8. Bg5 {[%clk
0:09:10.5]} 8... Kh8 {[%clk 0:11:28.4]} 9. Qd2 {[%clk 0:08:48.8]} 9... f6 {[%clk
0:11:27.1]} 10. Bh4 {[%clk 0:08:48.2]} 10... Bg4 {[%clk 0:11:23.1]} 11. Qe3
{[%clk 0:08:27.2]} 11... f5 {[%clk 0:11:12.6]} 12. Bxe7 {[%clk 0:07:22]} 12...
Nxe7 {[%clk 0:11:00]} 13. exf5 {[%clk 0:06:07]} 13... Nxf5 {[%clk 0:10:59.4]}
14. Qe4 {[%clk 0:05:37.1]} 14... c6 {[%clk 0:10:45.8]} 15. Ng5 {[%clk
0:05:11.1]} 15... Nh6 {[%clk 0:10:16.2]} 16. Ne6 {[%clk 0:05:05.4]} 16... Bxe6
{[%clk 0:10:08.2]} 17. Bxe6 {[%clk 0:05:01.1]} 17... d5 {[%clk 0:10:02.9]} 18.
Qd3 {[%clk 0:04:20]} 18... e4 {[%clk 0:10:01.4]} 19. Qe2 {[%clk 0:04:00.1]}
19... Qf6 {[%clk 0:09:56.6]} 20. Bh3 {[%clk 0:03:55]} 20... Rae8 {[%clk
0:09:47]} 21. Nd2 {[%clk 0:03:49.8]} 21... Nf7 {[%clk 0:09:04]} 22. g3 {[%clk
0:03:32.8]} 22... Ng5 {[%clk 0:08:53.1]} 23. Bg2 {[%clk 0:03:32.4]} 23... h5
{[%clk 0:08:39.8]} 24. h4 {[%clk 0:03:29.4]} 24... Nh7 {[%clk 0:08:28.8]} 25.
Nb3 {[%clk 0:02:47.7]} 25... Bh6 {[%clk 0:08:20.1]} 26. Rae1 {[%clk 0:02:46.3]}
26... Qf7 {[%clk 0:08:13.1]} 27. Nc5 {[%clk 0:02:30.6]} 27... b6 {[%clk
0:08:06]} 28. Nb3 {[%clk 0:02:30.6]} 28... g5 {[%clk 0:08:04.6]} 29. f3 {[%clk
0:02:16.2]} 29... gxh4 {[%clk 0:07:58.5]} 30. fxe4 {[%clk 0:02:17.2]} 30... Qg7
{[%clk 0:07:55.8]} 31. Rxf8+ {[%clk 0:02:14.7]} 31... Rxf8 {[%clk 0:07:49.9]}
32. gxh4 {[%clk 0:02:09.6]} 32... Nf6 {[%clk 0:07:18.3]} 33. exd5 {[%clk
0:02:05.7]} 33... cxd5 {[%clk 0:07:13.1]} 34. Nd2 {[%clk 0:01:38.4]} 34... Ng4
{[%clk 0:06:58.4]} 35. Rf1 {[%clk 0:01:28.7]} 35... Bxd2 {[%clk 0:06:23.7]} 36.
Qxd2 {[%clk 0:01:27.7]} 36... Rxf1+ {[%clk 0:06:17.7]} 37. Kxf1 {[%clk
0:01:23.4]} 37... Qf6+ {[%clk 0:06:07.4]} 38. Ke2 {[%clk 0:01:12]} 38... Qf2+
{[%clk 0:06:02.7]} 39. Kd3 {[%clk 0:01:05.1]} 39... Qg3+ {[%clk 0:05:18.4]} 40.
Kc2 {[%clk 0:01:01.6]} 40... Ne3+ {[%clk 0:05:12.5]} 41. Kb3 {[%clk 0:01:01]}
41... Nxg2 {[%clk 0:05:09.7]} 42. Qh6+ {[%clk 0:01:01.5]} 42... Kg8 {[%clk
0:05:04.1]} 43. Qe6+ {[%clk 0:01:00.4]} 43... Kg7 {[%clk 0:04:51.2]} 44. Qe7+
{[%clk 0:01:01.3]} 44... Kg6 {[%clk 0:04:49.1]} 45. Qg5+ {[%clk 0:00:58.6]}
45... Qxg5 {[%clk 0:04:48.7]} 46. hxg5 {[%clk 0:00:59.4]} 46... h4 {[%clk
0:04:49.4]} 47. c4 {[%clk 0:01:01.2]} 47... dxc4+ {[%clk 0:04:48.6]} 48. Kxc4
{[%clk 0:01:02.7]} 48... h3 {[%clk 0:04:47]} 49. d5 {[%clk 0:01:04.5]} 49... h2
{[%clk 0:04:46.6]} 50. d6 {[%clk 0:01:06.4]} 50... h1=Q {[%clk 0:04:47.2]} 51.
d7 {[%clk 0:01:08]} 0-1

[Event "Rapid della Domenica"]
[Site "Chess.com"]
[Date "2020.04.19"]
[Round "2"]
[White "caramante"]
[Black "Mrtre7"]
[Result "1-0"]
[WhiteElo "1514"]
[BlackElo "1396"]
[TimeControl "720+3"]
[EndTime "6:48:43 PDT"]
[Termination "caramante ha vinto per abbandono"]

1. Nf3 {[%clk 0:12:02.9]} 1... d5 {[%clk 0:11:49.6]} 2. d4 {[%clk 0:12:04.3]}
2... Nf6 {[%clk 0:11:45.2]} 3. g3 {[%clk 0:12:05.8]} 3... c6 {[%clk 0:11:42.2]}
4. Bg2 {[%clk 0:12:07]} 4... Bg4 {[%clk 0:11:40.5]} 5. Nbd2 {[%clk 0:12:07.4]}
5... Nbd7 {[%clk 0:11:40.3]} 6. O-O {[%clk 0:12:07.4]} 6... e6 {[%clk
0:11:42.2]} 7. Re1 {[%clk 0:12:08.6]} 7... Bd6 {[%clk 0:11:44]} 8. c3 {[%clk
0:11:44.7]} 8... O-O {[%clk 0:11:44]} 9. Qb3 {[%clk 0:11:43.3]} 9... c5 {[%clk
0:11:33.5]} 10. h3 {[%clk 0:11:40.7]} 10... Bf5 {[%clk 0:11:12.4]} 11. Nh4
{[%clk 0:11:37.3]} 11... Bg6 {[%clk 0:10:44.9]} 12. Nxg6 {[%clk 0:11:36.1]}
12... fxg6 {[%clk 0:10:24.8]} 13. e4 {[%clk 0:11:37]} 13... cxd4 {[%clk
0:09:47.8]} 14. cxd4 {[%clk 0:11:30.7]} 14... e5 {[%clk 0:08:30.5]} 15. exd5
{[%clk 0:10:35.8]} 15... exd4 {[%clk 0:08:26.9]} 16. Ne4 {[%clk 0:10:34.3]}
16... Nc5 {[%clk 0:08:20.7]} 17. Nxc5 {[%clk 0:10:32.6]} 17... Bxc5 {[%clk
0:08:18.6]} 18. Bg5 {[%clk 0:10:28.3]} 18... Qb6 {[%clk 0:07:38]} 19. Qxb6
{[%clk 0:10:18]} 19... Bxb6 {[%clk 0:07:38.8]} 20. Re7 {[%clk 0:10:11.1]} 20...
d3 {[%clk 0:07:16.4]} 21. Rd1 {[%clk 0:10:07.3]} 21... Nh5 {[%clk 0:06:51.8]}
22. Be3 {[%clk 0:09:51.4]} 22... Bxe3 {[%clk 0:05:43.7]} 23. Rxe3 {[%clk
0:09:50.3]} 23... Rad8 {[%clk 0:05:05.2]} 24. Rdxd3 {[%clk 0:09:41.1]} 24... Nf6
{[%clk 0:04:58.2]} 25. d6 {[%clk 0:09:38.4]} 25... Rfe8 {[%clk 0:04:44.1]} 26.
Rxe8+ {[%clk 0:09:32.9]} 26... Rxe8 {[%clk 0:04:45.4]} 27. Bxb7 {[%clk 0:09:34]}
27... Rd8 {[%clk 0:04:28.1]} 28. f4 {[%clk 0:09:03.4]} 28... Kf7 {[%clk
0:04:12.4]} 29. Kf2 {[%clk 0:08:44.3]} 29... Ke6 {[%clk 0:04:10.3]} 30. Ke3
{[%clk 0:08:39]} 30... Rb8 {[%clk 0:03:56.6]} 31. Rb3 {[%clk 0:08:33.3]} 31...
Kxd6 {[%clk 0:03:43.7]} 32. g4 {[%clk 0:08:34.2]} 32... Re8+ {[%clk 0:03:40.5]}
33. Kd4 {[%clk 0:08:26.4]} 33... Re2 {[%clk 0:03:24.3]} 34. Kd3 {[%clk
0:07:53.8]} 34... Rh2 {[%clk 0:02:50.1]} 35. Kc4 {[%clk 0:07:42.8]} 35... Rf2
{[%clk 0:02:26.2]} 36. Rd3+ {[%clk 0:07:32.9]} 36... Kc7 {[%clk 0:02:24.7]} 37.
Bf3 {[%clk 0:07:21.1]} 37... Rxb2 {[%clk 0:01:51.2]} 38. Ra3 {[%clk 0:07:15.2]}
38... Kb6 {[%clk 0:01:47.4]} 39. Kd4 {[%clk 0:07:12.4]} 39... Rd2+ {[%clk
0:01:47.9]} 40. Ke5 {[%clk 0:07:13.5]} 40... h6 {[%clk 0:01:33.3]} 41. Ke6
{[%clk 0:07:12.6]} 41... Rh2 {[%clk 0:01:30.5]} 42. Ba8 {[%clk 0:06:55.4]} 42...
Re2+ {[%clk 0:01:15.7]} 43. Kf7 {[%clk 0:06:55.8]} 43... Rf2 {[%clk 0:00:59.6]}
44. Kxg6 {[%clk 0:06:52.6]} 44... Rxf4 {[%clk 0:00:49.2]} 45. Kxg7 {[%clk
0:06:54.4]} 45... Nxg4 {[%clk 0:00:32.5]} 46. hxg4 {[%clk 0:06:54.5]} 46...
Rxg4+ {[%clk 0:00:34.4]} 47. Kxh6 {[%clk 0:06:56.2]} 47... Rh4+ {[%clk
0:00:35.8]} 48. Kg5 {[%clk 0:06:55.8]} 48... Rh8 {[%clk 0:00:36.2]} 49. Bf3
{[%clk 0:06:54.2]} 49... Rg8+ {[%clk 0:00:37.6]} 50. Kf6 {[%clk 0:06:55.1]}
50... Rf8+ {[%clk 0:00:36.5]} 51. Ke7 {[%clk 0:06:56.5]} 51... Rf4 {[%clk
0:00:37.5]} 52. Rb3+ {[%clk 0:06:52.9]} 52... Kc5 {[%clk 0:00:32.6]} 53. Ke6
{[%clk 0:06:53.4]} 53... Rb4 {[%clk 0:00:21.4]} 54. Rxb4 {[%clk 0:06:50]} 54...
Kxb4 {[%clk 0:00:23.2]} 55. Bd5 {[%clk 0:06:51.7]} 55... a5 {[%clk 0:00:20.3]}
56. Kd6 {[%clk 0:06:51.5]} 56... a4 {[%clk 0:00:19.5]} 57. Kc6 {[%clk
0:06:51.6]} 57... Ka5 {[%clk 0:00:15.2]} 58. Kc5 {[%clk 0:06:52.6]} 58... a3
{[%clk 0:00:15.2]} 59. Kc4 {[%clk 0:06:52.6]} 59... Ka4 {[%clk 0:00:17]} 60. Kc3
{[%clk 0:06:54.2]} 60... Kb5 {[%clk 0:00:14.7]} 61. Kb3 {[%clk 0:06:56]} 61...
Kc5 {[%clk 0:00:14.1]} 62. Bg8 {[%clk 0:06:57.4]} 62... Kb6 {[%clk 0:00:14.8]}
63. Kxa3 {[%clk 0:06:58.9]} 63... Ka5 {[%clk 0:00:16.3]} 64. Bf7 {[%clk
0:06:56.4]} 64... Ka6 {[%clk 0:00:17.2]} 65. Kb4 {[%clk 0:06:58]} 65... Kb6
{[%clk 0:00:18]} 66. a4 {[%clk 0:06:59.7]} 66... Ka6 {[%clk 0:00:19.9]} 67. Bd5
{[%clk 0:07:00.1]} 67... Ka7 {[%clk 0:00:20.2]} 68. Kb5 {[%clk 0:07:00.8]} 68...
Kb8 {[%clk 0:00:20.7]} 69. Kb6 {[%clk 0:07:01.8]} 69... Kc8 {[%clk 0:00:21.4]}
1-0

[Event "Rapid della Domenica"]
[Site "Chess.com"]
[Date "2020.04.19"]
[Round "3"]
[White "SanSecondoPR"]
[Black "pedrak"]
[Result "0-1"]
[WhiteElo "1170"]
[BlackElo "1576"]
[TimeControl "720+3"]
[EndTime "6:55:21 PDT"]
[Termination "pedrak ha vinto per abbandono"]

1. e4 {[%clk 0:12:02.9]} 1... d5 {[%clk 0:11:59.8]} 2. Nf3 {[%clk 0:12:03.3]}
2... dxe4 {[%clk 0:11:58.9]} 3. Ng5 {[%clk 0:12:04.6]} 3... Nf6 {[%clk
0:11:59.3]} 4. d3 {[%clk 0:12:05.5]} 4... Bf5 {[%clk 0:11:54.2]} 5. Nc3 {[%clk
0:12:00.9]} 5... exd3 {[%clk 0:11:50.1]} 6. Bxd3 {[%clk 0:12:01.3]} 6... Bxd3
{[%clk 0:11:51.3]} 7. cxd3 {[%clk 0:11:54.6]} 7... e6 {[%clk 0:11:42.6]} 8. O-O
{[%clk 0:11:42.4]} 8... c6 {[%clk 0:11:41.8]} 9. Qb3 {[%clk 0:11:38.9]} 9... Qb6
{[%clk 0:11:42]} 10. Qc2 {[%clk 0:11:32.2]} 10... Be7 {[%clk 0:11:39]} 11. Be3
{[%clk 0:11:32.2]} 11... Qc7 {[%clk 0:11:39]} 12. Rad1 {[%clk 0:11:12.2]} 12...
Nbd7 {[%clk 0:11:39.6]} 13. d4 {[%clk 0:10:43.7]} 13... h6 {[%clk 0:11:35.6]}
14. Nf3 {[%clk 0:10:30.5]} 14... Rc8 {[%clk 0:10:46.9]} 15. Qe2 {[%clk
0:10:13.9]} 15... Nb6 {[%clk 0:10:31.4]} 16. Ne5 {[%clk 0:09:56]} 16... Nbd5
{[%clk 0:10:01.2]} 17. Bf4 {[%clk 0:09:46.8]} 17... Nxf4 {[%clk 0:09:56.8]} 0-1

[Event "Rapid della Domenica"]
[Site "Chess.com"]
[Date "2020.04.19"]
[Round "3"]
[White "FrancescoZasa"]
[Black "sergiodone"]
[Result "0-1"]
[WhiteElo "738"]
[BlackElo "1357"]
[TimeControl "720+3"]
[EndTime "6:59:49 PDT"]
[Termination "sergiodone ha vinto per scaccomatto"]

1. d4 {[%clk 0:12:00.6]} 1... Nf6 {[%clk 0:11:55.6]} 2. Nf3 {[%clk 0:12:01.1]}
2... c5 {[%clk 0:11:55.7]} 3. Nc3 {[%clk 0:11:56.5]} 3... b6 {[%clk 0:11:51.4]}
4. e3 {[%clk 0:11:50.6]} 4... d6 {[%clk 0:11:53.1]} 5. dxc5 {[%clk 0:11:52]}
5... bxc5 {[%clk 0:11:53]} 6. e4 {[%clk 0:11:45]} 6... Nbd7 {[%clk 0:11:51.2]}
7. Bb5 {[%clk 0:11:40.2]} 7... g6 {[%clk 0:11:52.3]} 8. O-O {[%clk 0:11:39.7]}
8... Bg7 {[%clk 0:11:53.2]} 9. Qe1 {[%clk 0:11:19.2]} 9... O-O {[%clk
0:11:53.1]} 10. Qd1 {[%clk 0:11:11.3]} 10... Bb7 {[%clk 0:11:54.4]} 11. Re1
{[%clk 0:11:11.3]} 11... a6 {[%clk 0:11:53.5]} 12. Bxd7 {[%clk 0:11:10.1]} 12...
Nxd7 {[%clk 0:11:52.2]} 13. a3 {[%clk 0:11:03.7]} 13... Qc7 {[%clk 0:11:53]} 14.
b4 {[%clk 0:11:03.8]} 14... cxb4 {[%clk 0:11:51.9]} 15. axb4 {[%clk 0:11:04.8]}
15... Qxc3 {[%clk 0:11:53.3]} 16. Bb2 {[%clk 0:10:37.6]} 16... Qxb2 {[%clk
0:11:52.7]} 17. Rb1 {[%clk 0:10:37.5]} 17... Qc3 {[%clk 0:11:53]} 18. Qd3 {[%clk
0:10:21.2]} 18... Qc7 {[%clk 0:11:47.5]} 19. h3 {[%clk 0:09:53.1]} 19... Ne5
{[%clk 0:11:49]} 20. Nxe5 {[%clk 0:09:52.8]} 20... Bxe5 {[%clk 0:11:48.4]} 21.
g3 {[%clk 0:09:46.1]} 21... Qb6 {[%clk 0:11:45.4]} 22. Qe3 {[%clk 0:09:44.4]}
22... Qxe3 {[%clk 0:11:40.9]} 23. Rxe3 {[%clk 0:09:42.2]} 23... f5 {[%clk
0:11:41.5]} 24. Rc3 {[%clk 0:09:26.6]} 24... Bxe4 {[%clk 0:11:40.9]} 25. Rcb3
{[%clk 0:09:22.7]} 25... Bxc2 {[%clk 0:11:41.1]} 26. g4 {[%clk 0:08:47.7]} 26...
fxg4 {[%clk 0:11:30.4]} 27. hxg4 {[%clk 0:08:44.2]} 27... Bxb1 {[%clk
0:11:30.8]} 28. Rxb1 {[%clk 0:08:44.5]} 28... Rab8 {[%clk 0:11:31.6]} 29. f3
{[%clk 0:08:36.1]} 29... Rb5 {[%clk 0:11:32.8]} 30. Kg2 {[%clk 0:08:27]} 30...
Rfb8 {[%clk 0:11:33.1]} 31. Ra1 {[%clk 0:08:21.3]} 31... Bxa1 {[%clk 0:11:30.7]}
32. Kg3 {[%clk 0:08:18.2]} 32... Rxb4 {[%clk 0:11:31.2]} 33. f4 {[%clk
0:08:18.9]} 33... e6 {[%clk 0:11:29.4]} 34. g5 {[%clk 0:08:19.5]} 34... Rc8
{[%clk 0:11:22.1]} 35. Kg4 {[%clk 0:08:17.3]} 35... Kg7 {[%clk 0:11:17.2]} 36.
Kf3 {[%clk 0:07:58.4]} 36... Rc3+ {[%clk 0:11:15]} 37. Kg4 {[%clk 0:07:59.7]}
37... Rb1 {[%clk 0:11:04.5]} 38. Kh4 {[%clk 0:07:56.7]} 38... Rh1+ {[%clk
0:11:01.8]} 39. Kg4 {[%clk 0:07:58.1]} 39... Rcc1 {[%clk 0:10:54.7]} 40. Kg3
{[%clk 0:07:58.2]} 40... Rhg1+ {[%clk 0:10:49.1]} 41. Kh2 {[%clk 0:07:55.1]}
41... Bd4 {[%clk 0:10:34.7]} 42. Kh3 {[%clk 0:07:54.2]} 42... Rc2 {[%clk
0:10:12.9]} 43. Kh4 {[%clk 0:07:51.5]} 43... Rh2# {[%clk 0:10:12.8]} 0-1